Cogmind - Beta 14 @@@ ROGUE MODE // 2024.10.19 @ 22:37:29 Player: Proroxy Result: Destroyed by S-10 Pest with Light Assault Rifle Performance ------------- Evolutions (0) 0 Regions Visited (1) 200 Robots Destroyed (12) 60 Value Destroyed (200) 200 Prototype IDs (0) 0 Alien Tech Used (0) 0 Bonus (0) 0 TOTAL SCORE: 460 Bonus ------- None Cogmind --------- Core Integrity 0/250 Matter 208/300 Energy 83/125 System Corruption 0% Temperature Cool (0) Movement Rolling (100) Location -10/Materials Parts ------- > --- POWER (1) -------- Light Ion Engine > --- PROPULSION (2) --- Compact Wheel Compact Wheel > --- UTILITY (2) ------ Large Storage Unit > --- WEAPON (2) ------- (None) > --- INVENTORY (15) --- Light Ion Engine Light Ion Engine Aluminum Leg Compact Wheel Small Storage Unit Core Shielding Power Shielding Particle Cannon Particle Cannon Peak State ------------ > --- POWER ------------ Light Ion Engine > --- PROPULSION ------- Aluminum Leg Aluminum Leg > --- UTILITY ---------- Small Storage Unit Improved Terrain Scanner > --- WEAPON ----------- Medium Laser Assault Rifle > --- INVENTORY -------- Light Treads Light Treads Wheel Compact Wheel Compact Wheel Assault Rifle [Rating: 9] Favorites ----------- Power Light Ion Engine Engine Light Ion Engine Propulsion Aluminum Leg Leg Aluminum Leg Wheel Compact Wheel Utility Large Storage Unit Device Shield Generator Storage Large Storage Unit Protection Core Shielding Weapon Assault Rifle Energy Gun EM Pulse Gun Ballistic Gun Assault Rifle Build | -11 -10 ------- Run | Yrd Mat Slots Evolved . | . . Power . | . . Propulsion . | . . Utility . | . . Weapon . | . . Parts Attached 31 | 7 24 Power 4 | 1 3 Engine 4 | 1 3 Core . | . . Reactor . | . . Propulsion 13 | 2 11 Treads . | . . Leg 9 | 2 7 Wheel 4 | . 4 Hover . | . . Flight . | . . Utility 8 | 2 6 Device 5 | 1 4 Storage 2 | 1 1 Processor . | . . Hackware . | . . Protection 1 | . 1 Artifact . | . . Weapon 6 | 2 4 Energy Gun 3 | 1 2 Energy Cannon . | . . Ballistic Gun 3 | 1 2 Ballistic Cannon . | . . Launcher . | . . Special Weapon . | . . Impact Weapon . | . . Slashing Weapon . | . . Piercing Weapon . | . . Special Melee Weapon . | . . Unidentified Prototypes . | . . Parts Lost 11 | . 11 Power 2 | . 2 Propulsion 4 | . 4 Utility 2 | . 2 Weapon 3 | . 3 Highest Loss Streak 7 | . 7 To Critical Strikes 1 | . 1 Average Slot Usage (%) 91 | . 91 Engine 14 | . 14 Leg 23 | . 23 Wheel 3 | . 3 Device 10 | . 10 Storage 14 | . 14 Protection 2 | . 2 Energy Gun 8 | . 8 Ballistic Gun 13 | . 13 Peak Build Rating 9 | 9 9 Average Rating 7 | 4 8 On Entrance 4 | . 9 Naked Turns . | . . Heaviest Build 29 | 13 29 Greatest Support 32 | 20 32 Greatest Overweight (x) 8 | . 8 Average Overweight (x) . | . . Largest Inventory Capacity 15 | 8 15 Average Capacity 13 | 6 14 Most Carried 15 | 8 15 Average Carried 9 | 4 10 Final Capacity 15 | 8 15 Final Carried 9 | 8 9 Class Distribution -------------------- 92% | Mutant 7% | Scavenger-Mutant Dominant Class ---------------- Mutant | -10/Materials Resources | -11 -10 ----------- Run | Yrd Mat Matter Collected 466 | 287 179 Remotely . | . . Salvage Created 342 | 87 255 Parts 30 | 8 22 Haulers Intercepted . | . . Recyclers Shooed . | . . Parts Field Recycled . | . . Retrieved Matter . | . . Parts Self-Destructed . | . . Prevented . | . . Kills | -11 -10 ------- Run | Yrd Mat Combat Hostiles Destroyed 9 | . 9 Guns 8 | . 8 AOE 1 | . 1 Classes Destroyed 5 | 3 2 Worker 1 | 1 . Tunneler 1 | 1 . Recycler 1 | 1 . Swarmer 5 | . 5 Grunt 4 | . 4 Best Kill Streak 3 | 2 3 Combat Bots Only 3 | . 3 Max Kills in Single Turn 1 | 1 1 Gunslinging . | . . Exploded 1 | . 1 Melee . | . . Uniques/NPCs Destroyed . | . . Combat | -11 -10 -------- Run | Yrd Mat Hostile Shots Fired 162 | . 162 Missed 35 | . 35 Damage Taken 1058 | . 1058 Core 250 | . 250 Absorbed by Shields 149 | . 149 Redirected to Shielding 28 | . 28 Core Remaining (%) 100 | 100 . Volleys Fired 35 | 7 28 Largest 2 | 2 2 Hottest 70 | 70 60 Shots Fired 58 | 10 48 Gun 58 | 10 48 Cannon . | . . Launcher . | . . Special . | . . Kinetic 41 | 7 34 Thermal 3 | 3 . Explosive . | . . Electromagnetic 14 | . 14 Robot Hit Streak 6 | 5 6 Robot Miss Streak 5 | 1 5 Penetration Max . | . . Secondary Targets 2 | . 2 Max Gunslinging Chain 1 | . 1 Shots Hit Robots 32 | 7 25 Core Hits 19 | 4 15 Critical Kills . | . . Critical Parts Destroyed . | . . Critical Strikes . | . . Melee Attacks . | . . Impact . | . . Slashing . | . . Piercing . | . . Sneak Attacks . | . . Combat Hostiles . | . . Follow-up Attacks . | . . Damage Inflicted 421 | 86 335 Guns 373 | 86 287 Cannons . | . . Explosions 48 | . 48 Melee . | . . Ramming . | . . Kinetic 250 | 74 176 Thermal 60 | 12 48 Explosive . | . . Electromagnetic 111 | . 111 Impact . | . . Slashing . | . . Piercing . | . . Highest Corruption . | . . Average Corruption . | . . Corruption Purged . | . . Corruption Blocked . | . . Overload Shots . | . . Overflow Damage . | . . Projectiles . | . . Explosions . | . . Melee . | . . Knockbacks . | . . Impact . | . . Kinetic . | . . Secondary . | . . Self-Inflicted Damage 20 | . 20 Shots 1 | . 1 Rammed . | . . Targets Rammed . | . . Kicked . | . . Crushed . | . . Highest Temperature 18 | 18 12 Average Temperature 8 | 9 7 Received Heat Transfer 108 | . 108 Siege Activations . | . . Robots Corrupted . | . . Combat Hostiles . | . . Parts Fried . | . . Impact Corruptions . | . . Robots Melted . | . . Combat Hostiles . | . . Parts Melted . | . . Heat Transferred 87 | 37 50 Parts Sabotaged . | . . Parts Stolen . | . . Parts Stripped . | . . Power Chain Reactions 1 | . 1 Alert | -11 -10 ------- Run | Yrd Mat Peak Influence 172 | 15 172 Initial 9 | . 9 Average 61 | 5 71 Maximum Alert Level . | . . Low Security (%) 100 | 100 100 Level 1 . | . . Level 2 . | . . Level 3 . | . . Level 4 . | . . Level 5 . | . . High Security . | . . Max Security . | . . Squads Dispatched 2 | . 2 Investigation 1 | . 1 Extermination . | . . Reinforcement 1 | . 1 Assault . | . . Garrison . | . . Intercept . | . . Searches Triggered . | . . Construction Impeded . | . . Haulers Reinforced . | . . Active Scanning Responses . | . . Cargo Convoy Interrupts . | . . Stealth | -11 -10 --------- Run | Yrd Mat Distress Signals 3 | . 3 Communications Jammed . | . . Distress Signals . | . . Times Spotted 28 | . 28 Peak Tracking Total 7 | . 7 Tactical Retreats 3 | . 3 Traps | -11 -10 ------- Run | Yrd Mat Traps Triggered 4 | . 4 Indirectly . | . . Trap Hack Attempts . | . . Triggered . | . . Disarmed . | . . Reprogrammed . | . . Reused . | . . Traps Extracted . | . . Installed . | . . Triggered . | . . Machines | -11 -10 ---------- Run | Yrd Mat Machines Disabled . | . . Max in Single Turn . | . . Machines Repaired . | . . Machines Dismantled . | . . Machines Sabotaged . | . . Overloaded Fab Kills . | . . Hacking | -11 -10 --------- Run | Yrd Mat Machines Accessed 3 | . 3 Terminals 3 | . 3 Fabricators . | . . Repair Stations . | . . Recycling Units . | . . Scanalyzers . | . . Garrison Access . | . . Total Hacks 9 | . 9 Successful 3 | . 3 Failed 6 | . 6 Catastrophic . | . . Database Lockouts . | . . Manual . | . . Terminals 9 | . 9 Fabricators . | . . Repair Stations . | . . Recycling Units . | . . Scanalyzers . | . . Garrison Access . | . . Terminal Hacks 3 | . 3 Record 2 | . 2 Zone Layout 1 | . 1 Fabricator Hacks . | . . Repair Station Hacks . | . . Recycling Unit Hacks . | . . Scanalyzer . | . . Garrison Access Hacks . | . . Unauthorized Hacks . | . . Terminals . | . . Fabricators . | . . Repair Stations . | . . Recycling Units . | . . Scanalyzers . | . . Garrison Access . | . . Data Cores Recovered . | . . Used . | . . Hacking Detections 2 | . 2 Full Trace Events . | . . Feedback Events . | . . Feedback Blocked . | . . Robot Schematics Acquired . | . . Robots Built . | . . Authchips . | . . Time . | . . Total Robot Build Rating . | . . Part Schematics Acquired . | . . Parts Built . | . . Authchips . | . . Time . | . . Total Part Build Rating . | . . Parts Repaired . | . . Time . | . . Parts Recycled . | . . Recycled Matter . | . . Retrieved Matter . | . . Retrieved Components . | . . Parts Scanalyzed . | . . Part Schematics Acquired . | . . Parts Damaged . | . . Bothacking | -11 -10 ------------ Run | Yrd Mat Used RIF Installer . | . . Robots Hacked . | . . Non-combat . | . . Combat . | . . Robot Hacks Applied . | . . Relay Couplers Released . | . . Fabnet Peak Effective % . | . . Robots Rewired . | . . Allies Hacked . | . . Hacks Repelled . | . . Allies | -11 -10 -------- Run | Yrd Mat Total Allies . | . . Largest Group . | . . Highest-Rated Group . | . . Highest-Rated Ally . | . . Total Orders . | . . Ally Attacks . | . . Total Damage . | . . Kills . | . . Allies Corrupted . | . . Allies Melted . | . . Intel | -11 -10 ------- Run | Yrd Mat Robot Analysis Total . | . . Derelict Logs Recovered . | . . Drone Launches . | . . Drone Recoveries . | . . Exploration | -11 -10 ------------- Run | Yrd Mat Turns Passed 767 | 119 648 Spaces Moved 402 | 80 322 Core 26 | 24 2 Treads . | . . Legs 304 | 56 248 Wheels 72 | . 72 Hover . | . . Flight . | . . Fastest Speed 50 | 50 100 Average Speed 149 | 99 162 Slowest Speed 450 | 120 450 Overloaded Moves . | . . Propulsion Burnouts . | . . Robots Hopped . | . . Cave-ins Triggered . | . . Exploration Rate (%) 27 | 4 51 Regions Visited 1 Branch Regions . Pre-discovered Areas . | . . Known Exits Taken . | . . Unknown Exits Taken 1 | 1 . Scrap Searched . | . . Spaces Dug . | . . Terrain Destroyed 2 | . 2 Melee . | . . Projectile . | . . AOE 2 | . 2 Terrain Rammed . | . . Walls Destroyed . | . . Machines Disabled . | . . Actions | -11 -10 --------- Run | Yrd Mat Total 507 | 110 397 Wait . | . . Move 401 | 79 322 Hop . | . . Pick Up 34 | 16 18 Fast Attach . | . . Attach 20 | 7 13 Detach . | . . Swap 11 | . 11 Drop 6 | 1 5 Fire 35 | 7 28 Melee . | . . Ram . | . . Kick . | . . Crush . | . . Escape Stasis . | . . Rewire . | . . Trap . | . . Miscellaneous . | . . Route ------- -11/Scrapyard -10/Materials (discovered 2 exits: [*Min x2]) History --------- Turn | Location | Event 6 | -11/Scrapyard | Discovered new exit (range 15) 120 | -11/Scrapyard | Entered Materials 302 | -10/Materials | Build established: Mutant 620 | -10/Materials | Derelicts attacked the area 653 | -10/Materials | Core integrity fell below 50% 685 | -10/Materials | Lost 7 parts (2p2n1u2w) 732 | -10/Materials | Discovered new exit (range 18) 732 | -10/Materials | Discovered new exit (range 16) 756 | -10/Materials | Core integrity fell below 20% 768 | -10/Materials | Destroyed by S-10 Pest with Light Assault Rifle Last Messages --------------- Acquired Lgt. Ion Engine. O-16 Technician destroyed. T-07 Excavator destroyed. Connecting with Terminal... >>Query(Lightweight Power Sources) Many engines, cores, and reactors have an alternative lightweight variant that retains the generation efficiency of its standard version but minimizes built-in battery space to reduce weight for certain robot designs, especially those with strict weight restrictions such as hovering and flight-based models. EXIT=FOUND >>Layout(Zone) Retrieving Zone 8J layout... Downloaded map data. EM Pulse Gun destroyed. Aluminum Leg destroyed. Shield Generator destroyed. Map ----- +----------------------------------------------------+ | ??????????????????????????????????????????? | | ??????????????????????????????????????????? | | ??????????????????????????????????????????? | | ??????????????????????????????????????????? | | ??????????????????????????????????????????? | | ??????????????????????????????????????????? | | ??????????????????????????????????????????? | | ??????????????????????????????????????????? | | ??????????????????????????????????????????? | | ??????????????????????????????????????????? | | ??????????????????????????????????????????? | | ??????????????????????????????????????????? | | ??????????????????????????????????????????? | | ??????????????????????????????????????????? | | ??????????????????????????????????????????? | | ??????????????????????????????????????????? | | ??????????????????????????????????????????? | | ??????????????????????????????????????????? | | #########??????# #??#######????????????? | | ## ######## #### #????????????? | | #????????????? | | < ]< #????????????? | | #????????????? | | ## ##+############ #????????????? | | ## " " " # ### ####????????????? | | ##"" " ""# #?#@#???????????????? | | ########## #?# #???????????????? | | # # #?# #???????????????? | | # """ # #?# #???????????????? | | # """ # #?# #???????????????? | | + """ #####+########?# #???????????????? | | # #?# ######## ##??????????????? | | # """ #?# #??????????????? | | # """ #?# T #??????????????? | | # """ #?# #??????????????? | | # #?# ###+### #??????????????? | | ##########?## ### # #??????????????? | | ##??????????# #?# # #??????????????? | | #??????????# #?# #s #??????????????? | | ############ #?# # s#??????????????? | | ### # s #??????????????? | | + ! # #??????????????? | | ### # #??????????????? | | #################?# # #??????????????? | | ??????????????????# # #??????????????? | | ??????????????????###### #??????????????? | | ???????????????????## ###????????????? | | ???????????????????# ????????????? | | ???????????????????# ###????????????? | | ??????????????????????????????????????????? | +----------------------------------------------------+ Best States ------------- Heat Dissipation 25 Energy Generation 10 Energy Capacity 125 Matter Stores 296 Matter Capacity 300 Sight Range 16 Terrain Scan Range 16 Terrain Scan Density 10 Core Shielding 20 Evasion (%) 55 Item Schematics ----------------- None Robot Schematics ------------------ None Fabricated ------------ Nothing Alien Tech Used ----------------- None Achievements -------------- None Challenges ------------ None Game ------ Seed ServoControlBlaster Manual? 0 Play Time 00:22:49 Cumulative 7.0 hours Start 2024.10.19 @ 22:16:15 End 2024.10.19 @ 22:37:29 Sessions 1 Manual Loads 0 Difficulty Rogue Special Mode None Game No. 11 Rogue 11 Adventurer 0 Explorer 0 Win Type - Total 0 Types 0/0/0/0/0/0/0/0/0 Lore% 1 Gallery% 7 Achievement% 8 Wizard Run 0 Options --------- Layout 1 ASCII 0 Keyboard 1 Movement Numpad Keybinds 0 Fullscreen 1 Font 24/Smallcaps Map View 50x35 Zoom Use 0% Tactical HUD 0 Map Filters NONE Filters NONE Steam 1 RUN: 73fafc36-c663-4c2d-8901-3bd9dadceac1